[Event "Titled Tuesday Blitz June 22 2021"]
[White "Smirnov, Pavel"]
[Black "Maksimovic, Bojan"]
[WhiteFideId "4123425"]
[BlackFideId "14408120"]
[WhiteElo "2584"]
[BlackElo "2437"]
[Result "1-0"]
[Round "05"]
[TimeControl "180+1"]
[Date "2021.06.22"]
[WhiteClock "0:00:40"]
[BlackClock "0:00:01"]

1. e4 {[%clk 0:03:00]}  c5 {[%clk 0:03:00]} 2. c3 {[%clk 0:03:00]}  d6 {[%clk 0:02:59]} 3. d4 {[%clk 0:03:00]}  Qc7 {[%clk 0:03:00]} 4. Nf3 {[%clk 0:02:58]}  g6 {[%clk 0:03:00]} 5. Bd3 {[%clk 0:02:58]}  Bg7 {[%clk 0:03:00]} 6. h3 {[%clk 0:02:58]}  Nf6 {[%clk 0:02:51]} 7. O-O {[%clk 0:02:57]}  O-O {[%clk 0:02:50]} 8. Re1 {[%clk 0:02:58]}  e5 {[%clk 0:02:49]} 9. dxe5 {[%clk 0:02:57]}  dxe5 {[%clk 0:02:49]} 10. Qe2 {[%clk 0:02:57]}  Be6 {[%clk 0:02:34]} 11. Ng5 {[%clk 0:02:56]}  Bd7 {[%clk 0:02:27]} 12. Na3 {[%clk 0:02:55]}  h6 {[%clk 0:02:24]} 13. Nf3 {[%clk 0:02:54]}  Nc6 {[%clk 0:02:23]} 14. Nc2 {[%clk 0:02:36]}  Be6 {[%clk 0:02:18]} 15. Bc4 {[%clk 0:02:31]}  Bxc4 {[%clk 0:02:16]} 16. Qxc4 {[%clk 0:02:30]}  Na5 {[%clk 0:02:15]} 17. Qe2 {[%clk 0:02:28]}  c4 {[%clk 0:02:11]} 18. Ne3 {[%clk 0:02:26]}  b5 {[%clk 0:02:09]} 19. Nh2 {[%clk 0:02:07]}  Nb7 {[%clk 0:01:50]} 20. Nhg4 {[%clk 0:02:04]}  Nxg4 {[%clk 0:01:36]} 21. hxg4 {[%clk 0:02:05]}  Nc5 {[%clk 0:01:28]} 22. Nd5 {[%clk 0:02:06]}  Qd6 {[%clk 0:01:27]} 23. g5 {[%clk 0:01:58]}  hxg5 {[%clk 0:01:17]} 24. Bxg5 {[%clk 0:01:59]}  f6 {[%clk 0:01:15]} 25. Bh4 {[%clk 0:01:55]}  Nd3 {[%clk 0:01:13]} 26. Red1 {[%clk 0:01:53]}  Kf7 {[%clk 0:01:03]} 27. a4 {[%clk 0:01:50]}  a6 {[%clk 0:01:02]} 28. b3 {[%clk 0:01:38]}  Rh8 {[%clk 0:00:54]} 29. Qg4 {[%clk 0:01:31]}  g5 {[%clk 0:00:06]} 30. Bg3 {[%clk 0:01:28]}  Rhd8 {[%clk 0:00:06]} 31. bxc4 {[%clk 0:01:22]}  bxc4 {[%clk 0:00:06]} 32. a5 {[%clk 0:01:23]}  Rab8 {[%clk 0:00:05]} 33. Nb6 {[%clk 0:01:21]}  Qe6 {[%clk 0:00:05]} 34. Qxe6+ {[%clk 0:01:19]}  Kxe6 {[%clk 0:00:06]} 35. Nxc4 {[%clk 0:01:20]}  Nc5 {[%clk 0:00:06]} 36. f3 {[%clk 0:01:19]}  Nb3 {[%clk 0:00:04]} 37. Rxd8 {[%clk 0:01:14]}  Rxd8 {[%clk 0:00:04]} 38. Rb1 {[%clk 0:01:14]}  Nc5 {[%clk 0:00:04]} 39. Rb6+ {[%clk 0:01:14]}  Kf7 {[%clk 0:00:04]} 40. Ne3 {[%clk 0:01:14]}  Bf8 {[%clk 0:00:02]} 41. Nd5 {[%clk 0:01:13]}  Nd3 {[%clk 0:00:01]} 42. Rxf6+ {[%clk 0:01:12]}  Kg7 {[%clk 0:00:02]} 43. Rxa6 {[%clk 0:01:12]}  Bc5+ {[%clk 0:00:02]} 44. Kf1 {[%clk 0:01:12]}  Rb8 {[%clk 0:00:02]} 45. Ke2 {[%clk 0:01:11]}  Nf4+ {[%clk 0:00:02]} 46. Bxf4 {[%clk 0:01:10]}  gxf4 {[%clk 0:00:02]} 47. Rc6 {[%clk 0:01:10]}  Rb2+ {[%clk 0:00:02]} 48. Kd3 {[%clk 0:01:10]}  Bg1 {[%clk 0:00:02]} 49. Nb6 {[%clk 0:00:41]}  Rxg2 {[%clk 0:00:03]} 50. Nc4 {[%clk 0:00:41]}  Rf2 {[%clk 0:00:01]} 51. Nxe5 {[%clk 0:00:42]}  Bh2 {[%clk 0:00:01]} 52. Rg6+ {[%clk 0:00:40]} 1-0


[Site "https://www.chess.com"]

[Event "Titled Tuesday Blitz June 22 2021"]
[White "Stribuk, Artiom"]
[Black "Tabatabaei, M. Amin"]
[WhiteFideId "13515659"]
[BlackFideId "12521213"]
[WhiteElo "2177"]
[BlackElo "2555"]
[Result "1-0"]
[Round "05"]
[TimeControl "180+1"]
[Date "2021.06.22"]
[WhiteClock "0:00:12"]
[BlackClock "0:00:09"]

1. d4 {[%clk 0:02:58]}  f5 {[%clk 0:02:58]} 2. Nf3 {[%clk 0:02:55]}  Nf6 {[%clk 0:02:57]} 3. g3 {[%clk 0:02:56]}  e6 {[%clk 0:02:56]} 4. Bg2 {[%clk 0:02:56]}  b6 {[%clk 0:02:54]} 5. O-O {[%clk 0:02:55]}  Bb7 {[%clk 0:02:55]} 6. c4 {[%clk 0:02:55]}  Be7 {[%clk 0:02:53]} 7. d5 {[%clk 0:02:55]}  O-O {[%clk 0:02:44]} 8. Nd4 {[%clk 0:02:48]}  c5 {[%clk 0:02:33]} 9. Nc2 {[%clk 0:02:18]}  d6 {[%clk 0:02:29]} 10. dxe6 {[%clk 0:02:14]}  Bxg2 {[%clk 0:02:30]} 11. Kxg2 {[%clk 0:02:15]}  Qc8 {[%clk 0:02:30]} 12. Nc3 {[%clk 0:02:15]}  Qxe6 {[%clk 0:02:30]} 13. Ne3 {[%clk 0:02:14]}  Nbd7 {[%clk 0:02:22]} 14. Ned5 {[%clk 0:02:12]}  Nxd5 {[%clk 0:02:22]} 15. Qxd5 {[%clk 0:02:09]}  Qxd5+ {[%clk 0:02:09]} 16. Nxd5 {[%clk 0:02:10]}  Rf7 {[%clk 0:02:09]} 17. Bf4 {[%clk 0:02:08]}  Nf6 {[%clk 0:02:09]} 18. Rfd1 {[%clk 0:01:53]}  Bf8 {[%clk 0:02:01]} 19. Nxf6+ {[%clk 0:01:44]}  Rxf6 {[%clk 0:02:02]} 20. Rd5 {[%clk 0:01:44]}  Re8 {[%clk 0:01:56]} 21. Kf1 {[%clk 0:01:14]}  h6 {[%clk 0:01:54]} 22. h4 {[%clk 0:01:14]}  g6 {[%clk 0:01:54]} 23. a4 {[%clk 0:01:11]}  a5 {[%clk 0:01:52]} 24. Rad1 {[%clk 0:01:03]}  Rd8 {[%clk 0:01:51]} 25. R1d3 {[%clk 0:01:01]}  Rd7 {[%clk 0:01:49]} 26. Rb3 {[%clk 0:01:01]}  Rb7 {[%clk 0:01:49]} 27. f3 {[%clk 0:00:59]}  Kf7 {[%clk 0:01:48]} 28. Bd2 {[%clk 0:00:48]}  Be7 {[%clk 0:01:46]} 29. Bxa5 {[%clk 0:00:47]}  Bd8 {[%clk 0:01:46]} 30. Bc3 {[%clk 0:00:46]}  Re6 {[%clk 0:01:46]} 31. a5 {[%clk 0:00:47]}  Bc7 {[%clk 0:01:42]} 32. a6 {[%clk 0:00:44]}  Ra7 {[%clk 0:01:42]} 33. Ra3 {[%clk 0:00:45]}  Re8 {[%clk 0:01:40]} 34. b4 {[%clk 0:00:44]}  cxb4 {[%clk 0:01:17]} 35. Bxb4 {[%clk 0:00:45]}  Re6 {[%clk 0:01:17]} 36. h5 {[%clk 0:00:41]}  Kf6 {[%clk 0:01:12]} 37. Bc3+ {[%clk 0:00:39]}  Kf7 {[%clk 0:01:11]} 38. hxg6+ {[%clk 0:00:38]}  Kxg6 {[%clk 0:01:12]} 39. Bd2 {[%clk 0:00:32]}  Re8 {[%clk 0:01:12]} 40. Bf4 {[%clk 0:00:33]}  Re6 {[%clk 0:01:12]} 41. Kf2 {[%clk 0:00:28]}  h5 {[%clk 0:01:12]} 42. Rb5 {[%clk 0:00:21]}  Re8 {[%clk 0:01:12]} 43. Rd5 {[%clk 0:00:19]}  Re6 {[%clk 0:01:11]} 44. Rad3 {[%clk 0:00:20]}  Rxa6 {[%clk 0:01:11]} 45. Bxd6 {[%clk 0:00:20]}  Bxd6 {[%clk 0:01:05]} 46. Rxd6 {[%clk 0:00:21]}  Kf6 {[%clk 0:01:06]} 47. Rd8 {[%clk 0:00:19]}  Ra2 {[%clk 0:01:02]} 48. Re3 {[%clk 0:00:19]}  Rc6 {[%clk 0:00:46]} 49. Rf8+ {[%clk 0:00:18]}  Kg6 {[%clk 0:00:46]} 50. Re5 {[%clk 0:00:18]}  Rxc4 {[%clk 0:00:27]} 51. Rfxf5 {[%clk 0:00:17]}  Rb4 {[%clk 0:00:28]} 52. Rxh5 {[%clk 0:00:15]}  Rbb2 {[%clk 0:00:28]} 53. g4 {[%clk 0:00:14]}  b5 {[%clk 0:00:28]} 54. Rhg5+ {[%clk 0:00:15]}  Kf6 {[%clk 0:00:28]} 55. Rgf5+ {[%clk 0:00:15]}  Kg6 {[%clk 0:00:28]} 56. Re6+ {[%clk 0:00:15]}  Kg7 {[%clk 0:00:29]} 57. Rfe5 {[%clk 0:00:15]}  b4 {[%clk 0:00:29]} 58. Rb6 {[%clk 0:00:16]}  b3 {[%clk 0:00:28]} 59. Re3 {[%clk 0:00:16]}  Ra3 {[%clk 0:00:26]} 60. f4 {[%clk 0:00:15]}  Ra4 {[%clk 0:00:25]} 61. Kf3 {[%clk 0:00:15]}  Rb1 {[%clk 0:00:25]} 62. Rexb3 {[%clk 0:00:12]}  Rf1+ {[%clk 0:00:25]} 63. Kg3 {[%clk 0:00:10]}  Rfxf4 {[%clk 0:00:25]} 64. Rb7+ {[%clk 0:00:11]}  Kg8 {[%clk 0:00:12]} 65. Rb8+ {[%clk 0:00:11]}  Kg7 {[%clk 0:00:13]} 66. R3b7+ {[%clk 0:00:11]}  Kg6 {[%clk 0:00:12]} 67. Rg8+ {[%clk 0:00:11]}  Kh6 {[%clk 0:00:11]} 68. g5+ {[%clk 0:00:11]}  Kh5 {[%clk 0:00:09]} 69. Rh7# {[%clk 0:00:12]} 1-0


[Site "https://www.chess.com"]

[Event "Titled Tuesday Blitz June 22 2021"]
[White "Tristan, Leonardo"]
[Black "Abdusattorov, Nodirbek"]
[WhiteFideId "113816"]
[BlackFideId "14204118"]
[WhiteElo "2404"]
[BlackElo "2662"]
[Result "1-0"]
[Round "05"]
[TimeControl "180+1"]
[Date "2021.06.22"]
[WhiteClock "0:00:29"]
[BlackClock "0:01:38"]

1. d4 {[%clk 0:03:00]}  Nf6 {[%clk 0:03:00]} 2. Bg5 {[%clk 0:03:01]}  Ne4 {[%clk 0:02:56]} 3. Bf4 {[%clk 0:03:00]}  c5 {[%clk 0:02:47]} 4. f3 {[%clk 0:03:00]}  Nf6 {[%clk 0:02:47]} 5. d5 {[%clk 0:03:00]}  Qb6 {[%clk 0:02:44]} 6. Bc1 {[%clk 0:02:58]}  e6 {[%clk 0:02:44]} 7. e4 {[%clk 0:02:56]}  exd5 {[%clk 0:02:44]} 8. exd5 {[%clk 0:02:57]}  Bd6 {[%clk 0:02:44]} 9. Na3 {[%clk 0:02:26]}  O-O {[%clk 0:02:44]} 10. Nc4 {[%clk 0:02:19]}  Re8+ {[%clk 0:02:45]} 11. Ne2 {[%clk 0:02:03]}  Qc7 {[%clk 0:02:45]} 12. Kf2 {[%clk 0:01:41]}  b5 {[%clk 0:02:40]} 13. Nxd6 {[%clk 0:01:39]}  Qxd6 {[%clk 0:02:40]} 14. Nc3 {[%clk 0:01:14]}  b4 {[%clk 0:02:40]} 15. Nb5 {[%clk 0:01:15]}  Qb6 {[%clk 0:02:40]} 16. a4 {[%clk 0:00:46]}  c4+ {[%clk 0:02:31]} 17. Qd4 {[%clk 0:00:45]}  Qxd4+ {[%clk 0:02:26]} 18. Nxd4 {[%clk 0:00:46]}  Ba6 {[%clk 0:02:26]} 19. Nb5 {[%clk 0:00:37]}  Bxb5 {[%clk 0:02:26]} 20. axb5 {[%clk 0:00:38]}  Rc8 {[%clk 0:02:27]} 21. b6 {[%clk 0:00:35]}  Nxd5 {[%clk 0:01:38]} 22. b7 {[%clk 0:00:34]}  Nc6 {[%clk 0:01:39]} 23. Bxc4 {[%clk 0:00:32]}  Nb6 {[%clk 0:01:38]} 24. Ba6 {[%clk 0:00:29]} 1-0


[Site "https://www.chess.com"]

[Event "Titled Tuesday Blitz June 22 2021"]
[White "Urquhart, Ed"]
[Black "Sonis, Francesco"]
[WhiteFideId "2603748"]
[BlackFideId "895733"]
[WhiteElo "2184"]
[BlackElo "2373"]
[Result "0-1"]
[Round "05"]
[TimeControl "180+1"]
[Date "2021.06.22"]
[WhiteClock "0:00:02"]
[BlackClock "0:00:11"]

1. e4 {[%clk 0:03:00]}  e5 {[%clk 0:02:57]} 2. Nf3 {[%clk 0:03:00]}  Nc6 {[%clk 0:02:53]} 3. d4 {[%clk 0:03:00]}  exd4 {[%clk 0:02:50]} 4. Bc4 {[%clk 0:03:01]}  Bc5 {[%clk 0:02:47]} 5. c3 {[%clk 0:03:00]}  Nf6 {[%clk 0:02:46]} 6. e5 {[%clk 0:03:00]}  d5 {[%clk 0:02:45]} 7. Bb5 {[%clk 0:03:01]}  Ne4 {[%clk 0:02:45]} 8. cxd4 {[%clk 0:03:01]}  Bb6 {[%clk 0:02:43]} 9. Nc3 {[%clk 0:03:01]}  Ba5 {[%clk 0:02:38]} 10. Bd2 {[%clk 0:02:56]}  Bxc3 {[%clk 0:02:25]} 11. bxc3 {[%clk 0:02:52]}  O-O {[%clk 0:02:20]} 12. O-O {[%clk 0:02:51]}  Na5 {[%clk 0:02:17]} 13. Bd3 {[%clk 0:02:44]}  f5 {[%clk 0:02:15]} 14. exf6 {[%clk 0:02:43]}  Qxf6 {[%clk 0:02:12]} 15. Ne5 {[%clk 0:01:47]}  Bf5 {[%clk 0:02:10]} 16. Bxe4 {[%clk 0:01:42]}  dxe4 {[%clk 0:01:44]} 17. Bf4 {[%clk 0:01:27]}  b6 {[%clk 0:01:34]} 18. Bg3 {[%clk 0:01:27]}  Rac8 {[%clk 0:01:33]} 19. c4 {[%clk 0:01:14]}  Rfe8 {[%clk 0:01:27]} 20. Qa4 {[%clk 0:00:53]}  c5 {[%clk 0:01:21]} 21. Nd7 {[%clk 0:00:30]}  Qxd4 {[%clk 0:01:13]} 22. Rad1 {[%clk 0:00:25]}  Qxc4 {[%clk 0:01:04]} 23. Qa3 {[%clk 0:00:17]}  Qb4 {[%clk 0:00:48]} 24. Qe3 {[%clk 0:00:17]}  Nc6 {[%clk 0:00:36]} 25. Qg5 {[%clk 0:00:15]}  Bg6 {[%clk 0:00:34]} 26. h4 {[%clk 0:00:13]}  e3 {[%clk 0:00:16]} 27. h5 {[%clk 0:00:13]}  e2 {[%clk 0:00:16]} 28. hxg6 {[%clk 0:00:13]}  exf1=Q+ {[%clk 0:00:16]} 29. Rxf1 {[%clk 0:00:13]}  Qe4 {[%clk 0:00:14]} 30. gxh7+ {[%clk 0:00:12]}  Kxh7 {[%clk 0:00:15]} 31. Qh5+ {[%clk 0:00:11]}  Kg8 {[%clk 0:00:15]} 32. Qg5 {[%clk 0:00:11]}  Qe6 {[%clk 0:00:13]} 33. Rd1 {[%clk 0:00:08]}  Rcd8 {[%clk 0:00:12]} 34. Rd3 {[%clk 0:00:02]}  Rxd7 {[%clk 0:00:11]} 0-1


[Site "https://www.chess.com"]

[Event "Titled Tuesday Blitz June 22 2021"]
[White "Vlassov, Nikolai"]
[Black "Kezin, Roman"]
[WhiteFideId "4103360"]
[BlackFideId "24124621"]
[WhiteElo "2407"]
[BlackElo "2574"]
[Result "0-1"]
[Round "05"]
[TimeControl "180+1"]
[Date "2021.06.22"]
[WhiteClock "0:00:02"]
[BlackClock "0:00:32"]

1. e4 {[%clk 0:03:00]}  b6 {[%clk 0:03:00]} 2. d4 {[%clk 0:03:00]}  Bb7 {[%clk 0:03:00]} 3. Bd3 {[%clk 0:03:00]}  e6 {[%clk 0:03:01]} 4. Nf3 {[%clk 0:03:00]}  d6 {[%clk 0:02:59]} 5. Nc3 {[%clk 0:02:57]}  g6 {[%clk 0:02:59]} 6. h4 {[%clk 0:02:54]}  h6 {[%clk 0:02:59]} 7. Bf4 {[%clk 0:02:48]}  Bg7 {[%clk 0:02:59]} 8. Qd2 {[%clk 0:02:48]}  Nd7 {[%clk 0:03:00]} 9. O-O-O {[%clk 0:02:47]}  Ngf6 {[%clk 0:03:00]} 10. Kb1 {[%clk 0:02:45]}  a6 {[%clk 0:02:59]} 11. Rhg1 {[%clk 0:02:24]}  Qe7 {[%clk 0:02:57]} 12. g4 {[%clk 0:02:24]}  b5 {[%clk 0:02:58]} 13. Rde1 {[%clk 0:02:01]}  Nb6 {[%clk 0:02:30]} 14. g5 {[%clk 0:01:52]}  hxg5 {[%clk 0:02:31]} 15. hxg5 {[%clk 0:01:52]}  Nfd7 {[%clk 0:02:25]} 16. Rh1 {[%clk 0:01:43]}  O-O-O {[%clk 0:02:21]} 17. a4 {[%clk 0:01:34]}  b4 {[%clk 0:02:13]} 18. Na2 {[%clk 0:01:30]}  a5 {[%clk 0:02:14]} 19. Nc1 {[%clk 0:01:25]}  c5 {[%clk 0:02:10]} 20. Bb5 {[%clk 0:01:13]}  Rxh1 {[%clk 0:02:01]} 21. Rxh1 {[%clk 0:01:11]}  Bxe4 {[%clk 0:02:01]} 22. Qe3 {[%clk 0:01:04]}  Bb7 {[%clk 0:01:51]} 23. Nb3 {[%clk 0:00:55]}  Nd5 {[%clk 0:01:50]} 24. Qd2 {[%clk 0:00:52]}  Nxf4 {[%clk 0:01:45]} 25. Qxf4 {[%clk 0:00:52]}  e5 {[%clk 0:01:44]} 26. Bxd7+ {[%clk 0:00:36]}  Qxd7 {[%clk 0:01:27]} 27. dxe5 {[%clk 0:00:27]}  Bxe5 {[%clk 0:01:23]} 28. Qe3 {[%clk 0:00:19]}  Qxa4 {[%clk 0:01:22]} 29. Rh7 {[%clk 0:00:11]}  Rh8 {[%clk 0:00:42]} 30. Rxh8+ {[%clk 0:00:06]}  Bxh8 {[%clk 0:00:43]} 31. Nxc5 {[%clk 0:00:06]}  dxc5 {[%clk 0:00:41]} 32. Qxc5+ {[%clk 0:00:06]}  Kd7 {[%clk 0:00:37]} 33. Ne5+ {[%clk 0:00:03]}  Bxe5 {[%clk 0:00:37]} 34. Qxe5 {[%clk 0:00:04]}  Qc6 {[%clk 0:00:37]} 35. Qd4+ {[%clk 0:00:02]}  Qd5 {[%clk 0:00:37]} 36. Qb6 {[%clk 0:00:02]}  Qh1+ {[%clk 0:00:34]} 37. Ka2 {[%clk 0:00:02]}  Qd5+ {[%clk 0:00:35]} 38. b3 {[%clk 0:00:02]}  Qc6 {[%clk 0:00:35]} 39. Qxa5 {[%clk 0:00:02]}  Qxc2+ {[%clk 0:00:34]} 40. Ka1 {[%clk 0:00:02]}  Qc1+ {[%clk 0:00:31]} 41. Ka2 {[%clk 0:00:02]}  Qa3+ {[%clk 0:00:32]} 42. Qxa3 {[%clk 0:00:02]}  bxa3 {[%clk 0:00:33]} 43. Kxa3 {[%clk 0:00:03]}  Ke6 {[%clk 0:00:34]} 44. Kb4 {[%clk 0:00:03]}  Kf5 {[%clk 0:00:35]} 45. Kc5 {[%clk 0:00:04]}  Kxg5 {[%clk 0:00:35]} 46. Kd6 {[%clk 0:00:04]}  Kf4 {[%clk 0:00:34]} 47. b4 {[%clk 0:00:02]}  f5 {[%clk 0:00:33]} 48. b5 {[%clk 0:00:02]}  g5 {[%clk 0:00:33]} 49. b6 {[%clk 0:00:02]}  g4 {[%clk 0:00:32]} 0-1


[Site "https://www.chess.com"]

[Event "Titled Tuesday Blitz June 22 2021"]
[White "Wagner, Dennis"]
[Black "Perez Ponsa, Federico"]
[WhiteFideId "24650684"]
[BlackFideId "117927"]
[WhiteElo "2355"]
[BlackElo "2672"]
[Result "0-1"]
[Round "05"]
[TimeControl "180+1"]
[Date "2021.06.22"]
[WhiteClock "0:00:08"]
[BlackClock "0:00:11"]

1. d4 {[%clk 0:03:00]}  Nf6 {[%clk 0:02:56]} 2. Nf3 {[%clk 0:03:00]}  d5 {[%clk 0:02:55]} 3. c4 {[%clk 0:03:00]}  e6 {[%clk 0:02:56]} 4. g3 {[%clk 0:03:00]}  Bb4+ {[%clk 0:02:49]} 5. Bd2 {[%clk 0:02:58]}  Bd6 {[%clk 0:02:48]} 6. Bg2 {[%clk 0:02:57]}  O-O {[%clk 0:02:47]} 7. Nc3 {[%clk 0:02:52]}  c6 {[%clk 0:02:39]} 8. b3 {[%clk 0:02:49]}  Nbd7 {[%clk 0:02:35]} 9. Qc2 {[%clk 0:02:49]}  b6 {[%clk 0:02:26]} 10. O-O {[%clk 0:02:45]}  Bb7 {[%clk 0:02:23]} 11. Rad1 {[%clk 0:02:41]}  Rc8 {[%clk 0:02:22]} 12. e4 {[%clk 0:02:38]}  Bb4 {[%clk 0:02:02]} 13. e5 {[%clk 0:02:25]}  Bxc3 {[%clk 0:01:56]} 14. exf6 {[%clk 0:02:24]}  Bxd2 {[%clk 0:01:56]} 15. fxg7 {[%clk 0:02:25]}  Kxg7 {[%clk 0:01:56]} 16. Qxd2 {[%clk 0:02:21]}  Qf6 {[%clk 0:01:52]} 17. Rfe1 {[%clk 0:02:20]}  Rfd8 {[%clk 0:01:50]} 18. Ne5 {[%clk 0:02:15]}  Nxe5 {[%clk 0:01:47]} 19. dxe5 {[%clk 0:02:10]}  Qh6 {[%clk 0:01:46]} 20. Qc3 {[%clk 0:02:03]}  c5 {[%clk 0:01:37]} 21. cxd5 {[%clk 0:02:03]}  Bxd5 {[%clk 0:01:38]} 22. Bxd5 {[%clk 0:02:02]}  Rxd5 {[%clk 0:01:39]} 23. b4 {[%clk 0:01:45]}  Rcd8 {[%clk 0:01:31]} 24. Rxd5 {[%clk 0:01:45]}  Rxd5 {[%clk 0:01:32]} 25. bxc5 {[%clk 0:01:45]}  bxc5 {[%clk 0:01:33]} 26. Re3 {[%clk 0:01:17]}  Qh5 {[%clk 0:01:26]} 27. Kg2 {[%clk 0:01:15]}  Qg4 {[%clk 0:01:19]} 28. Qa5 {[%clk 0:01:04]}  Qd4 {[%clk 0:01:10]} 29. Qc7 {[%clk 0:00:28]}  Rd7 {[%clk 0:01:04]} 30. Qc8 {[%clk 0:00:28]}  c4 {[%clk 0:01:01]} 31. h4 {[%clk 0:00:24]}  h6 {[%clk 0:00:41]} 32. h5 {[%clk 0:00:19]}  a5 {[%clk 0:00:38]} 33. a4 {[%clk 0:00:18]}  Qd5+ {[%clk 0:00:31]} 34. Kh2 {[%clk 0:00:18]}  Rb7 {[%clk 0:00:28]} 35. Re1 {[%clk 0:00:12]}  Rb2 {[%clk 0:00:24]} 36. Kg1 {[%clk 0:00:12]}  Qd4 {[%clk 0:00:19]} 37. Re3 {[%clk 0:00:12]}  Qd5 {[%clk 0:00:14]} 38. Re1 {[%clk 0:00:11]}  Qf3 {[%clk 0:00:13]} 39. Rf1 {[%clk 0:00:11]}  c3 {[%clk 0:00:14]} 40. Qc4 {[%clk 0:00:06]}  Rd2 {[%clk 0:00:11]} 41. Qc5 {[%clk 0:00:05]}  c2 {[%clk 0:00:10]} 42. Qc4 {[%clk 0:00:05]}  Qd1 {[%clk 0:00:07]} 43. Kg2 {[%clk 0:00:05]}  Qxf1+ {[%clk 0:00:05]} 44. Kxf1 {[%clk 0:00:06]}  Rd1+ {[%clk 0:00:05]} 45. Ke2 {[%clk 0:00:05]}  c1=Q {[%clk 0:00:06]} 46. Qg4+ {[%clk 0:00:05]}  Kf8 {[%clk 0:00:07]} 47. Qh4 {[%clk 0:00:05]}  Qc2+ {[%clk 0:00:06]} 48. Kf3 {[%clk 0:00:06]}  Qc6+ {[%clk 0:00:06]} 49. Ke2 {[%clk 0:00:06]}  Qc2+ {[%clk 0:00:06]} 50. Kf3 {[%clk 0:00:06]}  Qd3+ {[%clk 0:00:07]} 51. Kg2 {[%clk 0:00:06]}  Qd5+ {[%clk 0:00:07]} 52. f3 {[%clk 0:00:06]}  Qd2+ {[%clk 0:00:08]} 53. Kh3 {[%clk 0:00:06]}  Rh1+ {[%clk 0:00:08]} 54. Kg4 {[%clk 0:00:06]}  Rxh4+ {[%clk 0:00:09]} 55. gxh4 {[%clk 0:00:06]}  Qd4+ {[%clk 0:00:09]} 56. f4 {[%clk 0:00:07]}  Qxa4 {[%clk 0:00:09]} 57. Kg3 {[%clk 0:00:08]}  Qd4 {[%clk 0:00:10]} 58. Kg4 {[%clk 0:00:08]}  a4 {[%clk 0:00:11]} 0-1


[Site "https://www.chess.com"]

[Event "Titled Tuesday Blitz June 22 2021"]
[White "Willow, Jonah B"]
[Black "Demin, Vladimir"]
[WhiteFideId "438804"]
[BlackFideId "4167457"]
[WhiteElo "2261"]
[BlackElo "2551"]
[Result "1-0"]
[Round "05"]
[TimeControl "180+1"]
[Date "2021.06.22"]
[WhiteClock "0:00:22"]
[BlackClock "0:00:03"]

1. e4 {[%clk 0:03:00]}  e5 {[%clk 0:02:59]} 2. Nf3 {[%clk 0:02:59]}  Nc6 {[%clk 0:03:00]} 3. Nc3 {[%clk 0:03:00]}  Nf6 {[%clk 0:03:00]} 4. Bb5 {[%clk 0:02:59]}  Bb4 {[%clk 0:02:59]} 5. O-O {[%clk 0:03:00]}  O-O {[%clk 0:02:59]} 6. d3 {[%clk 0:03:00]}  d6 {[%clk 0:02:59]} 7. Bg5 {[%clk 0:03:01]}  Ne7 {[%clk 0:02:58]} 8. Nh4 {[%clk 0:03:00]}  c6 {[%clk 0:02:58]} 9. Bc4 {[%clk 0:02:59]}  Bxc3 {[%clk 0:02:50]} 10. bxc3 {[%clk 0:03:00]}  d5 {[%clk 0:02:50]} 11. Bb3 {[%clk 0:02:59]}  Ng6 {[%clk 0:02:50]} 12. Bxf6 {[%clk 0:02:45]}  gxf6 {[%clk 0:02:45]} 13. Nxg6 {[%clk 0:02:27]}  hxg6 {[%clk 0:02:44]} 14. Qf3 {[%clk 0:02:20]}  Be6 {[%clk 0:02:42]} 15. Qg3 {[%clk 0:02:16]}  a5 {[%clk 0:02:35]} 16. a4 {[%clk 0:02:13]}  Kg7 {[%clk 0:02:23]} 17. f4 {[%clk 0:02:12]}  exf4 {[%clk 0:02:21]} 18. Qxf4 {[%clk 0:02:12]}  Rh8 {[%clk 0:02:12]} 19. Rf2 {[%clk 0:02:08]}  Rh5 {[%clk 0:02:02]} 20. Raf1 {[%clk 0:02:05]}  f5 {[%clk 0:02:01]} 21. exd5 {[%clk 0:01:45]}  cxd5 {[%clk 0:01:52]} 22. Re1 {[%clk 0:01:28]}  Rc8 {[%clk 0:01:40]} 23. Qe5+ {[%clk 0:00:57]}  Qf6 {[%clk 0:01:37]} 24. Bxd5 {[%clk 0:00:48]}  Qxe5 {[%clk 0:00:44]} 25. Rxe5 {[%clk 0:00:48]}  Kf6 {[%clk 0:00:38]} 26. Bxe6 {[%clk 0:00:42]}  fxe6 {[%clk 0:00:37]} 27. Rfe2 {[%clk 0:00:42]}  Rxc3 {[%clk 0:00:31]} 28. Rxe6+ {[%clk 0:00:41]}  Kg5 {[%clk 0:00:32]} 29. g3 {[%clk 0:00:39]}  Rh7 {[%clk 0:00:29]} 30. h4+ {[%clk 0:00:33]}  Kh5 {[%clk 0:00:24]} 31. Rb6 {[%clk 0:00:30]}  Rhc7 {[%clk 0:00:19]} 32. Ree6 {[%clk 0:00:30]}  Kg4 {[%clk 0:00:17]} 33. Rxg6+ {[%clk 0:00:29]}  Kf3 {[%clk 0:00:17]} 34. Rbf6 {[%clk 0:00:25]}  R7c5 {[%clk 0:00:15]} 35. Rg5 {[%clk 0:00:24]}  Rxc2 {[%clk 0:00:14]} 36. Rfxf5+ {[%clk 0:00:24]}  Rxf5 {[%clk 0:00:14]} 37. Rxf5+ {[%clk 0:00:25]}  Kxg3 {[%clk 0:00:14]} 38. h5 {[%clk 0:00:23]}  Rc1+ {[%clk 0:00:13]} 39. Rf1 {[%clk 0:00:23]}  Rc2 {[%clk 0:00:13]} 40. Rb1 {[%clk 0:00:22]}  Rg2+ {[%clk 0:00:13]} 41. Kf1 {[%clk 0:00:22]}  Rh2 {[%clk 0:00:13]} 42. Rb5 {[%clk 0:00:21]}  Kf3 {[%clk 0:00:12]} 43. Rf5+ {[%clk 0:00:20]}  Ke3 {[%clk 0:00:12]} 44. Rxa5 {[%clk 0:00:19]}  Kxd3 {[%clk 0:00:10]} 45. Kg1 {[%clk 0:00:20]}  Rh4 {[%clk 0:00:10]} 46. Kg2 {[%clk 0:00:20]}  Ke3 {[%clk 0:00:06]} 47. Kg3 {[%clk 0:00:20]}  Rh1 {[%clk 0:00:05]} 48. Re5+ {[%clk 0:00:20]}  Kd4 {[%clk 0:00:05]} 49. Rb5 {[%clk 0:00:21]}  Rg1+ {[%clk 0:00:03]} 50. Kf4 {[%clk 0:00:21]}  Rf1+ {[%clk 0:00:03]} 51. Kg5 {[%clk 0:00:22]}  Rg1+ {[%clk 0:00:02]} 52. Kf6 {[%clk 0:00:22]}  Rh1 {[%clk 0:00:02]} 53. Kg6 {[%clk 0:00:22]}  Ke4 {[%clk 0:00:03]} 54. Rxb7 {[%clk 0:00:21]}  Rg1+ {[%clk 0:00:02]} 55. Kf7 {[%clk 0:00:20]}  Kf5 {[%clk 0:00:02]} 56. Rb5+ {[%clk 0:00:20]}  Ke4 {[%clk 0:00:01]} 57. h6 {[%clk 0:00:21]}  Rh1 {[%clk 0:00:01]} 58. Kg7 {[%clk 0:00:21]}  Rg1+ {[%clk 0:00:01]} 59. Kf6 {[%clk 0:00:21]}  Rh1 {[%clk 0:00:01]} 60. Kg6 {[%clk 0:00:21]}  Rg1+ {[%clk 0:00:02]} 61. Rg5 {[%clk 0:00:22]}  Rd1 {[%clk 0:00:01]} 62. h7 {[%clk 0:00:22]}  Rd6+ {[%clk 0:00:01]} 63. Kf7 {[%clk 0:00:22]}  Rd8 {[%clk 0:00:02]} 64. Rg8 {[%clk 0:00:23]}  Rd7+ {[%clk 0:00:02]} 65. Ke6 {[%clk 0:00:23]}  Rd6+ {[%clk 0:00:03]} 66. Kxd6 {[%clk 0:00:22]} 1-0


[Site "https://www.chess.com"]